[Event "Titled Tuesday Blitz August 08 Late 2023"]
[White "Toropov, Pavel"]
[Black "Dwilewicz, Katarzyna"]
[WhiteFideId "24129178"]
[BlackFideId "1148486"]
[WhiteElo "2541"]
[BlackElo "2362"]
[Result "0-1"]
[Round "2"]
[TimeControl "180+1"]
[Date "2023.08.08"]
[WhiteClock "0:00:14"]
[BlackClock "0:00:04"]
[Board "132"]

1. e4 {[%clk 0:02:42]}  c5 {[%clk 0:03:00]} 2. Nf3 {[%clk 0:02:36]}  d6 {[%clk 0:03:00]} 3. Bb5+ {[%clk 0:02:34]}  Nd7 {[%clk 0:02:58]} 4. d4 {[%clk 0:02:26]}  cxd4 {[%clk 0:02:57]} 5. Qxd4 {[%clk 0:02:27]}  a6 {[%clk 0:02:57]} 6. Bxd7+ {[%clk 0:02:26]}  Bxd7 {[%clk 0:02:57]} 7. Nc3 {[%clk 0:02:27]}  Nf6 {[%clk 0:02:57]} 8. Bg5 {[%clk 0:02:23]}  e5 {[%clk 0:02:55]} 9. Qd3 {[%clk 0:02:23]}  h6 {[%clk 0:02:53]} 10. Bxf6 {[%clk 0:02:22]}  Qxf6 {[%clk 0:02:52]} 11. Nd5 {[%clk 0:02:22]}  Qd8 {[%clk 0:02:52]} 12. O-O-O {[%clk 0:02:23]}  Rc8 {[%clk 0:02:46]} 13. Kb1 {[%clk 0:02:22]}  Be6 {[%clk 0:02:42]} 14. Rd2 {[%clk 0:02:16]}  Qa5 {[%clk 0:02:39]} 15. Qb3 {[%clk 0:02:10]}  b5 {[%clk 0:02:36]} 16. Rhd1 {[%clk 0:01:50]}  Rc6 {[%clk 0:02:28]} 17. Qe3 {[%clk 0:01:42]}  Be7 {[%clk 0:02:21]} 18. Qa7 {[%clk 0:00:50]}  Bxd5 {[%clk 0:02:09]} 19. Rxd5 {[%clk 0:00:39]}  Qc7 {[%clk 0:01:57]} 20. Qxc7 {[%clk 0:00:32]}  Rxc7 {[%clk 0:01:56]} 21. a4 {[%clk 0:00:31]}  Rb7 {[%clk 0:01:46]} 22. axb5 {[%clk 0:00:20]}  axb5 {[%clk 0:01:45]} 23. b4 {[%clk 0:00:18]}  O-O {[%clk 0:01:44]} 24. Kb2 {[%clk 0:00:18]}  Rc8 {[%clk 0:01:42]} 25. Ra1 {[%clk 0:00:18]}  Rc4 {[%clk 0:01:38]} 26. Kb3 {[%clk 0:00:16]}  Rxe4 {[%clk 0:01:38]} 27. c3 {[%clk 0:00:16]}  Re2 {[%clk 0:01:31]} 28. Ra5 {[%clk 0:00:16]}  Rxf2 {[%clk 0:01:29]} 29. Raxb5 {[%clk 0:00:17]}  Rc7 {[%clk 0:01:25]} 30. Rb8+ {[%clk 0:00:17]}  Kh7 {[%clk 0:01:25]} 31. b5 {[%clk 0:00:18]}  e4 {[%clk 0:01:21]} 32. Nd4 {[%clk 0:00:17]}  Rf1 {[%clk 0:01:19]} 33. Kc2 {[%clk 0:00:15]}  Rf2+ {[%clk 0:01:14]} 34. Kb3 {[%clk 0:00:14]}  Bf6 {[%clk 0:00:52]} 35. b6 {[%clk 0:00:11]}  Rc5 {[%clk 0:00:48]} 36. Rxc5 {[%clk 0:00:10]}  dxc5 {[%clk 0:00:48]} 37. b7 {[%clk 0:00:11]}  Be5 {[%clk 0:00:40]} 38. Re8 {[%clk 0:00:11]}  Rf1 {[%clk 0:00:33]} 39. Kc2 {[%clk 0:00:11]}  Bxh2 {[%clk 0:00:29]} 40. Nc6 {[%clk 0:00:11]}  Rf2+ {[%clk 0:00:24]} 41. Kb3 {[%clk 0:00:11]}  Rf6 {[%clk 0:00:19]} 42. b8=Q {[%clk 0:00:09]}  Bxb8 {[%clk 0:00:19]} 43. Nxb8 {[%clk 0:00:10]}  Rb6+ {[%clk 0:00:14]} 44. Kc4 {[%clk 0:00:10]}  f5 {[%clk 0:00:14]} 45. Nd7 {[%clk 0:00:11]}  Rb2 {[%clk 0:00:09]} 46. Nf8+ {[%clk 0:00:11]}  Kg8 {[%clk 0:00:10]} 47. Nd7+ {[%clk 0:00:11]}  Kf7 {[%clk 0:00:09]} 48. Re5 {[%clk 0:00:12]}  g6 {[%clk 0:00:08]} 49. Nxc5 {[%clk 0:00:12]}  Rxg2 {[%clk 0:00:08]} 50. Kd4 {[%clk 0:00:12]}  Rd2+ {[%clk 0:00:06]} 51. Ke3 {[%clk 0:00:12]}  Rc2 {[%clk 0:00:07]} 52. Kd4 {[%clk 0:00:13]}  Rd2+ {[%clk 0:00:07]} 53. Ke3 {[%clk 0:00:13]}  Rc2 {[%clk 0:00:08]} 54. Kd4 {[%clk 0:00:13]}  h5 {[%clk 0:00:03]} 55. c4 {[%clk 0:00:13]}  h4 {[%clk 0:00:04]} 56. Nxe4 {[%clk 0:00:13]}  fxe4 {[%clk 0:00:03]} 57. Rxe4 {[%clk 0:00:14]}  g5 {[%clk 0:00:04]} 58. Re5 {[%clk 0:00:12]}  Kf6 {[%clk 0:00:04]} 59. Re8 {[%clk 0:00:12]}  g4 {[%clk 0:00:04]} 60. Rf8+ {[%clk 0:00:13]}  Kg6 {[%clk 0:00:03]} 61. Rf4 {[%clk 0:00:14]}  Kg5 {[%clk 0:00:04]} 62. Rf8 {[%clk 0:00:15]}  h3 {[%clk 0:00:04]} 63. c5 {[%clk 0:00:15]}  g3 {[%clk 0:00:04]} 64. Kd3 {[%clk 0:00:16]}  Rc1 {[%clk 0:00:04]} 65. Rg8+ {[%clk 0:00:16]}  Kf4 {[%clk 0:00:04]} 66. Kd2 {[%clk 0:00:14]}  Rxc5 {[%clk 0:00:04]} 0-1


[Site "https://www.chess.com"]

[Event "Titled Tuesday Blitz August 08 Late 2023"]
[White "Castella Garcia, Fausto"]
[Black "ATM622"]
[WhiteFideId "3501922"]
[WhiteElo "2347"]
[BlackElo "2513"]
[Result "0-1"]
[Round "2"]
[TimeControl "180+1"]
[Date "2023.08.08"]
[WhiteClock "0:00:19"]
[BlackClock "0:01:26"]
[Board "135"]

1. e4 {[%clk 0:03:00]}  c6 {[%clk 0:02:59]} 2. Nc3 {[%clk 0:03:00]}  d5 {[%clk 0:03:00]} 3. Nf3 {[%clk 0:02:59]}  dxe4 {[%clk 0:03:00]} 4. Nxe4 {[%clk 0:02:59]}  Bf5 {[%clk 0:02:59]} 5. Ng3 {[%clk 0:02:57]}  Bg6 {[%clk 0:02:59]} 6. h4 {[%clk 0:02:57]}  h6 {[%clk 0:02:55]} 7. Ne5 {[%clk 0:02:56]}  Bh7 {[%clk 0:02:55]} 8. Qh5 {[%clk 0:02:55]}  g6 {[%clk 0:02:55]} 9. Bc4 {[%clk 0:02:51]}  e6 {[%clk 0:02:53]} 10. Qf3 {[%clk 0:02:50]}  Nf6 {[%clk 0:02:51]} 11. b3 {[%clk 0:02:28]}  Bg7 {[%clk 0:02:49]} 12. Bb2 {[%clk 0:02:27]}  O-O {[%clk 0:02:44]} 13. O-O-O {[%clk 0:02:27]}  a5 {[%clk 0:02:40]} 14. Kb1 {[%clk 0:02:05]}  a4 {[%clk 0:02:36]} 15. d4 {[%clk 0:01:50]}  Nbd7 {[%clk 0:02:31]} 16. Bd3 {[%clk 0:01:47]}  axb3 {[%clk 0:02:19]} 17. cxb3 {[%clk 0:01:42]}  Qa5 {[%clk 0:02:17]} 18. a4 {[%clk 0:01:41]}  Nxe5 {[%clk 0:02:14]} 19. dxe5 {[%clk 0:01:41]}  Nd5 {[%clk 0:02:14]} 20. h5 {[%clk 0:01:15]}  Nc3+ {[%clk 0:01:54]} 21. Kc2 {[%clk 0:01:15]}  Bxe5 {[%clk 0:01:50]} 22. Qg4 {[%clk 0:00:48]}  Nxd1 {[%clk 0:01:40]} 23. Rxd1 {[%clk 0:00:38]}  Bxb2 {[%clk 0:01:35]} 24. Kxb2 {[%clk 0:00:39]}  Qe5+ {[%clk 0:01:35]} 25. Kb1 {[%clk 0:00:37]}  f5 {[%clk 0:01:34]} 26. Qc4 {[%clk 0:00:34]}  Qd5 {[%clk 0:01:33]} 27. hxg6 {[%clk 0:00:32]}  Bxg6 {[%clk 0:01:30]} 28. Qc2 {[%clk 0:00:19]}  Rad8 {[%clk 0:01:26]} 0-1


[Site "https://www.chess.com"]

[Event "Titled Tuesday Blitz August 08 Late 2023"]
[White "Villuendas Valero, Adrian"]
[Black "Sreyas Payyappat"]
[WhiteFideId "2262460"]
[BlackFideId "46674969"]
[WhiteElo "2336"]
[BlackElo "2508"]
[Result "0-1"]
[Round "2"]
[TimeControl "180+1"]
[Date "2023.08.08"]
[WhiteClock "0:00:16"]
[BlackClock "0:01:32"]
[Board "136"]

1. e4 {[%clk 0:03:00]}  c6 {[%clk 0:02:59]} 2. Nf3 {[%clk 0:03:00]}  d5 {[%clk 0:03:00]} 3. Nc3 {[%clk 0:03:01]}  dxe4 {[%clk 0:03:00]} 4. Nxe4 {[%clk 0:03:02]}  Nf6 {[%clk 0:03:01]} 5. Qe2 {[%clk 0:03:02]}  Nxe4 {[%clk 0:03:01]} 6. Qxe4 {[%clk 0:03:03]}  Nd7 {[%clk 0:03:02]} 7. Bc4 {[%clk 0:03:02]}  Nf6 {[%clk 0:03:03]} 8. Ne5 {[%clk 0:03:02]}  e6 {[%clk 0:03:03]} 9. Qe2 {[%clk 0:03:02]}  b5 {[%clk 0:03:04]} 10. Bb3 {[%clk 0:02:59]}  Qc7 {[%clk 0:03:04]} 11. d4 {[%clk 0:02:58]}  Bd6 {[%clk 0:03:02]} 12. Bg5 {[%clk 0:02:54]}  Bb7 {[%clk 0:02:56]} 13. O-O {[%clk 0:02:52]}  Nd5 {[%clk 0:02:45]} 14. Bxd5 {[%clk 0:02:48]}  cxd5 {[%clk 0:02:44]} 15. Qxb5+ {[%clk 0:02:46]}  Kf8 {[%clk 0:02:43]} 16. c3 {[%clk 0:02:16]}  f6 {[%clk 0:02:36]} 17. Nd7+ {[%clk 0:02:13]}  Ke7 {[%clk 0:02:35]} 18. Nc5 {[%clk 0:01:49]}  Bxc5 {[%clk 0:02:33]} 19. dxc5 {[%clk 0:01:48]}  fxg5 {[%clk 0:02:32]} 20. Rfe1 {[%clk 0:01:48]}  Rhf8 {[%clk 0:02:24]} 21. Rad1 {[%clk 0:01:45]}  Rf6 {[%clk 0:02:22]} 22. f3 {[%clk 0:01:43]}  Raf8 {[%clk 0:02:21]} 23. b4 {[%clk 0:01:37]}  g4 {[%clk 0:02:11]} 24. fxg4 {[%clk 0:01:33]}  Rf2 {[%clk 0:02:07]} 25. Re2 {[%clk 0:01:18]}  Bc6 {[%clk 0:01:53]} 26. Qd3 {[%clk 0:01:15]}  Qf4 {[%clk 0:01:47]} 27. Ree1 {[%clk 0:00:52]}  d4 {[%clk 0:01:37]} 28. Rxe6+ {[%clk 0:00:32]}  Kxe6 {[%clk 0:01:33]} 29. Re1+ {[%clk 0:00:16]}  Kd7 {[%clk 0:01:32]} 0-1


[Site "https://www.chess.com"]

[Event "Titled Tuesday Blitz August 08 Late 2023"]
[White "Geivondian, Arman"]
[Black "crosky"]
[WhiteFideId "24102032"]
[WhiteElo "2508"]
[BlackElo "2332"]
[Result "1-0"]
[Round "2"]
[TimeControl "180+1"]
[Date "2023.08.08"]
[WhiteClock "0:01:43"]
[BlackClock "0:00:00"]
[Board "137"]

1. e4 {[%clk 0:03:00]}  c6 {[%clk 0:02:59]} 2. Nf3 {[%clk 0:03:01]}  d5 {[%clk 0:03:00]} 3. d3 {[%clk 0:03:02]}  g6 {[%clk 0:02:59]} 4. e5 {[%clk 0:03:01]}  Bg7 {[%clk 0:02:57]} 5. d4 {[%clk 0:03:01]}  f6 {[%clk 0:02:57]} 6. exf6 {[%clk 0:02:54]}  exf6 {[%clk 0:02:54]} 7. Bf4 {[%clk 0:02:47]}  Bh6 {[%clk 0:02:44]} 8. Qd2 {[%clk 0:02:43]}  Bxf4 {[%clk 0:02:40]} 9. Qxf4 {[%clk 0:02:44]}  Qe7+ {[%clk 0:02:15]} 10. Be2 {[%clk 0:02:30]}  Qe4 {[%clk 0:02:16]} 11. Qd2 {[%clk 0:02:28]}  Bf5 {[%clk 0:02:06]} 12. Na3 {[%clk 0:02:24]}  Nd7 {[%clk 0:01:48]} 13. O-O-O {[%clk 0:02:18]}  O-O-O {[%clk 0:01:45]} 14. h3 {[%clk 0:02:16]}  h5 {[%clk 0:01:44]} 15. Rhe1 {[%clk 0:02:16]}  Qe6 {[%clk 0:01:14]} 16. Nh4 {[%clk 0:02:14]}  Nh6 {[%clk 0:01:09]} 17. Bxh5 {[%clk 0:02:10]}  Qf7 {[%clk 0:01:04]} 18. Nxf5 {[%clk 0:02:07]}  Nxf5 {[%clk 0:01:00]} 19. Bg4 {[%clk 0:02:07]}  Nd6 {[%clk 0:00:51]} 20. Qf4 {[%clk 0:02:06]}  Ne4 {[%clk 0:00:40]} 21. f3 {[%clk 0:02:01]}  Nf2 {[%clk 0:00:40]} 22. Rd2 {[%clk 0:01:59]}  Nxg4 {[%clk 0:00:37]} 23. hxg4 {[%clk 0:02:00]}  Rde8 {[%clk 0:00:16]} 24. Rde2 {[%clk 0:01:57]}  Rxe2 {[%clk 0:00:16]} 25. Rxe2 {[%clk 0:01:58]}  Rh1+ {[%clk 0:00:16]} 26. Kd2 {[%clk 0:01:58]}  Nb6 {[%clk 0:00:16]} 27. b3 {[%clk 0:01:53]}  Na8 {[%clk 0:00:14]} 28. c4 {[%clk 0:01:52]}  Nc7 {[%clk 0:00:14]} 29. Qd6 {[%clk 0:01:50]}  Ra1 {[%clk 0:00:10]} 30. Kc3 {[%clk 0:01:43]}  Rc1+ {[%clk 0:00:08]} 31. Kb2 {[%clk 0:01:43]}  Rd1 {[%clk 0:00:00]} 32. Re7 {[%clk 0:01:43]} 1-0


[Site "https://www.chess.com"]

[Event "Titled Tuesday Blitz August 08 Late 2023"]
[White "Shapiro, Daniel"]
[Black "Kozusek, Daniel"]
[WhiteFideId "2001780"]
[BlackFideId "349500"]
[WhiteElo "2331"]
[BlackElo "2506"]
[Result "0-1"]
[Round "2"]
[TimeControl "180+1"]
[Date "2023.08.08"]
[WhiteClock "0:00:00"]
[BlackClock "0:00:05"]
[Board "139"]

1. d4 {[%clk 0:03:00]}  Nf6 {[%clk 0:02:57]} 2. c4 {[%clk 0:03:00]}  e6 {[%clk 0:02:58]} 3. g3 {[%clk 0:02:59]}  c5 {[%clk 0:02:57]} 4. d5 {[%clk 0:02:59]}  exd5 {[%clk 0:02:57]} 5. cxd5 {[%clk 0:02:59]}  d6 {[%clk 0:02:58]} 6. Nc3 {[%clk 0:02:58]}  g6 {[%clk 0:02:58]} 7. Nf3 {[%clk 0:02:58]}  Bg7 {[%clk 0:02:59]} 8. Bg2 {[%clk 0:02:58]}  O-O {[%clk 0:03:00]} 9. O-O {[%clk 0:02:59]}  Re8 {[%clk 0:03:01]} 10. Nd2 {[%clk 0:02:59]}  Na6 {[%clk 0:03:00]} 11. Nc4 {[%clk 0:02:51]}  Nc7 {[%clk 0:02:48]} 12. Bf4 {[%clk 0:02:45]}  Bf8 {[%clk 0:02:45]} 13. a4 {[%clk 0:02:41]}  b6 {[%clk 0:02:31]} 14. h3 {[%clk 0:02:31]}  Ba6 {[%clk 0:02:31]} 15. Qb3 {[%clk 0:02:26]}  Bxc4 {[%clk 0:02:26]} 16. Qxc4 {[%clk 0:02:25]}  Nd7 {[%clk 0:02:24]} 17. e4 {[%clk 0:02:18]}  Ne5 {[%clk 0:02:21]} 18. Qe2 {[%clk 0:02:18]}  Bg7 {[%clk 0:02:19]} 19. g4 {[%clk 0:02:11]}  g5 {[%clk 0:02:16]} 20. Bg3 {[%clk 0:02:09]}  Ng6 {[%clk 0:02:16]} 21. Qd2 {[%clk 0:01:54]}  Be5 {[%clk 0:02:05]} 22. Nd1 {[%clk 0:01:45]}  Nf4 {[%clk 0:01:45]} 23. Ne3 {[%clk 0:01:42]}  b5 {[%clk 0:01:44]} 24. Nf5 {[%clk 0:01:30]}  bxa4 {[%clk 0:01:38]} 25. h4 {[%clk 0:01:29]}  Rb8 {[%clk 0:01:33]} 26. Ra2 {[%clk 0:01:29]}  Nb5 {[%clk 0:01:12]} 27. Kh2 {[%clk 0:01:19]}  Nd4 {[%clk 0:01:06]} 28. Rh1 {[%clk 0:01:18]}  Rb3 {[%clk 0:00:51]} 29. Ra3 {[%clk 0:01:05]}  Nde2 {[%clk 0:00:25]} 30. Ra2 {[%clk 0:00:43]}  gxh4 {[%clk 0:00:21]} 31. Bxh4 {[%clk 0:00:34]}  Ng6+ {[%clk 0:00:21]} 32. Bg3 {[%clk 0:00:31]}  Nxg3 {[%clk 0:00:09]} 33. fxg3 {[%clk 0:00:28]}  Bxg3+ {[%clk 0:00:08]} 34. Nxg3 {[%clk 0:00:18]}  Qh4+ {[%clk 0:00:09]} 35. Kg1 {[%clk 0:00:19]}  Qxg3 {[%clk 0:00:09]} 36. Qh6 {[%clk 0:00:15]}  Qe1+ {[%clk 0:00:09]} 37. Kh2 {[%clk 0:00:14]}  Qf2 {[%clk 0:00:07]} 38. Rxa4 {[%clk 0:00:09]}  Rg3 {[%clk 0:00:06]} 39. Rg1 {[%clk 0:00:08]}  Nf4 {[%clk 0:00:03]} 40. Qg5+ {[%clk 0:00:08]}  Ng6 {[%clk 0:00:02]} 41. Ra3 {[%clk 0:00:03]}  Rxa3 {[%clk 0:00:02]} 42. bxa3 {[%clk 0:00:03]}  Qf4+ {[%clk 0:00:03]} 43. Qxf4 {[%clk 0:00:02]}  Nxf4 {[%clk 0:00:04]} 44. Bf3 {[%clk 0:00:03]}  Nd3 {[%clk 0:00:04]} 45. Rb1 {[%clk 0:00:00]}  Ne5 {[%clk 0:00:05]} 0-1


[Site "https://www.chess.com"]

[Event "Titled Tuesday Blitz August 08 Late 2023"]
[White "Berezin, Viktor"]
[Black "ciroreva-CB"]
[WhiteFideId "14107872"]
[WhiteElo "2506"]
[BlackElo "2326"]
[Result "0-1"]
[Round "2"]
[TimeControl "180+1"]
[Date "2023.08.08"]
[WhiteClock "0:00:10"]
[BlackClock "0:00:05"]
[Board "140"]

1. d4 {[%clk 0:02:56]}  d5 {[%clk 0:02:52]} 2. c4 {[%clk 0:02:55]}  dxc4 {[%clk 0:02:53]} 3. Nf3 {[%clk 0:02:54]}  e6 {[%clk 0:02:52]} 4. e3 {[%clk 0:02:51]}  a6 {[%clk 0:02:51]} 5. a4 {[%clk 0:02:47]}  Nf6 {[%clk 0:02:47]} 6. Bxc4 {[%clk 0:02:44]}  c5 {[%clk 0:02:45]} 7. O-O {[%clk 0:02:41]}  Nc6 {[%clk 0:02:44]} 8. Nc3 {[%clk 0:02:41]}  cxd4 {[%clk 0:02:39]} 9. exd4 {[%clk 0:02:38]}  Be7 {[%clk 0:02:38]} 10. Bb3 {[%clk 0:02:33]}  O-O {[%clk 0:02:37]} 11. Bc2 {[%clk 0:02:33]}  Nb4 {[%clk 0:02:27]} 12. Bb1 {[%clk 0:02:29]}  b6 {[%clk 0:02:25]} 13. Qe2 {[%clk 0:02:27]}  Bb7 {[%clk 0:02:23]} 14. Rd1 {[%clk 0:02:27]}  Rc8 {[%clk 0:02:18]} 15. Bg5 {[%clk 0:02:17]}  Nbd5 {[%clk 0:02:05]} 16. Nxd5 {[%clk 0:02:02]}  Qxd5 {[%clk 0:02:05]} 17. Bd3 {[%clk 0:01:55]}  a5 {[%clk 0:01:49]} 18. Rac1 {[%clk 0:01:47]}  h6 {[%clk 0:01:46]} 19. Bh4 {[%clk 0:01:45]}  Qh5 {[%clk 0:01:41]} 20. Bg3 {[%clk 0:01:39]}  Rfd8 {[%clk 0:01:24]} 21. Ba6 {[%clk 0:01:33]}  Rxc1 {[%clk 0:01:07]} 22. Rxc1 {[%clk 0:01:28]}  Bxf3 {[%clk 0:01:06]} 23. Qxf3 {[%clk 0:01:09]}  Qxf3 {[%clk 0:01:06]} 24. gxf3 {[%clk 0:01:10]}  Rxd4 {[%clk 0:01:06]} 25. b3 {[%clk 0:01:04]}  Nd5 {[%clk 0:01:01]} 26. Be5 {[%clk 0:00:56]}  Rd2 {[%clk 0:00:57]} 27. Bc4 {[%clk 0:00:39]}  Bc5 {[%clk 0:00:53]} 28. Bg3 {[%clk 0:00:39]}  Kf8 {[%clk 0:00:47]} 29. Kf1 {[%clk 0:00:39]}  Ke7 {[%clk 0:00:39]} 30. Ke1 {[%clk 0:00:39]}  Bb4 {[%clk 0:00:39]} 31. Kf1 {[%clk 0:00:39]}  g5 {[%clk 0:00:32]} 32. h4 {[%clk 0:00:37]}  f5 {[%clk 0:00:31]} 33. hxg5 {[%clk 0:00:29]}  hxg5 {[%clk 0:00:32]} 34. Bxd5 {[%clk 0:00:29]}  Rxd5 {[%clk 0:00:32]} 35. f4 {[%clk 0:00:29]}  g4 {[%clk 0:00:25]} 36. Rc7+ {[%clk 0:00:26]}  Kd6 {[%clk 0:00:21]} 37. Rc8 {[%clk 0:00:19]}  Kd7 {[%clk 0:00:20]} 38. Rb8 {[%clk 0:00:19]}  Bc5 {[%clk 0:00:21]} 39. Bh4 {[%clk 0:00:18]}  Kc7 {[%clk 0:00:15]} 40. Re8 {[%clk 0:00:18]}  Rd3 {[%clk 0:00:09]} 41. Rxe6 {[%clk 0:00:17]}  Rxb3 {[%clk 0:00:10]} 42. Re5 {[%clk 0:00:16]}  Rf3 {[%clk 0:00:07]} 43. Rxf5 {[%clk 0:00:16]}  Bxf2 {[%clk 0:00:07]} 44. Bxf2 {[%clk 0:00:16]}  g3 {[%clk 0:00:08]} 45. Rf7+ {[%clk 0:00:14]}  Kc6 {[%clk 0:00:07]} 46. Kg2 {[%clk 0:00:15]}  gxf2 {[%clk 0:00:06]} 47. Kf1 {[%clk 0:00:14]}  Kc5 {[%clk 0:00:04]} 48. Rf6 {[%clk 0:00:14]}  b5 {[%clk 0:00:04]} 49. Rf5+ {[%clk 0:00:14]}  Kb4 {[%clk 0:00:04]} 50. axb5 {[%clk 0:00:12]}  a4 {[%clk 0:00:04]} 51. b6 {[%clk 0:00:12]}  Rd3 {[%clk 0:00:02]} 52. b7 {[%clk 0:00:12]}  Rd8 {[%clk 0:00:03]} 53. Kxf2 {[%clk 0:00:11]}  Rb8 {[%clk 0:00:03]} 54. Rf6 {[%clk 0:00:05]}  Rxb7 {[%clk 0:00:02]} 55. Ra6 {[%clk 0:00:06]}  a3 {[%clk 0:00:03]} 56. f5 {[%clk 0:00:06]}  Kb3 {[%clk 0:00:03]} 57. Kf3 {[%clk 0:00:06]}  a2 {[%clk 0:00:03]} 58. Kf4 {[%clk 0:00:07]}  Rb4+ {[%clk 0:00:02]} 59. Kg5 {[%clk 0:00:07]}  Ra4 {[%clk 0:00:03]} 60. Rb6+ {[%clk 0:00:07]}  Kc3 {[%clk 0:00:03]} 61. Rc6+ {[%clk 0:00:07]}  Kd2 {[%clk 0:00:03]} 62. Rd6+ {[%clk 0:00:07]}  Ke2 {[%clk 0:00:04]} 63. Re6+ {[%clk 0:00:08]}  Kf2 {[%clk 0:00:04]} 64. f6 {[%clk 0:00:08]}  a1=Q {[%clk 0:00:04]} 65. f7 {[%clk 0:00:09]}  Qg7+ {[%clk 0:00:04]} 66. Kf5 {[%clk 0:00:09]}  Qxf7+ {[%clk 0:00:04]} 67. Rf6 {[%clk 0:00:09]}  Rf4+ {[%clk 0:00:04]} 68. Kg5 {[%clk 0:00:10]}  Qxf6+ {[%clk 0:00:04]} 69. Kh5 {[%clk 0:00:10]}  Rh4# {[%clk 0:00:05]} 0-1


[Site "https://www.chess.com"]

[Event "Titled Tuesday Blitz August 08 Late 2023"]
[White "D`Arruda, Ricardo D."]
[Black "Lopez Gracia, Fernando"]
[WhiteFideId "100692"]
[BlackFideId "2207184"]
[WhiteElo "2504"]
[BlackElo "2324"]
[Result "1/2-1/2"]
[Round "2"]
[TimeControl "180+1"]
[Date "2023.08.08"]
[WhiteClock "0:01:27"]
[BlackClock "0:00:20"]
[Board "142"]

1. Nf3 {[%clk 0:03:00]}  c5 {[%clk 0:02:56]} 2. c4 {[%clk 0:02:59]}  Nc6 {[%clk 0:02:52]} 3. Nc3 {[%clk 0:03:00]}  g6 {[%clk 0:02:53]} 4. d4 {[%clk 0:02:59]}  cxd4 {[%clk 0:02:53]} 5. Nxd4 {[%clk 0:03:00]}  Bg7 {[%clk 0:02:53]} 6. e3 {[%clk 0:03:00]}  d6 {[%clk 0:02:52]} 7. Be2 {[%clk 0:03:00]}  Nf6 {[%clk 0:02:52]} 8. O-O {[%clk 0:03:01]}  O-O {[%clk 0:02:53]} 9. b3 {[%clk 0:03:01]}  Bd7 {[%clk 0:02:53]} 10. Bb2 {[%clk 0:03:00]}  Rc8 {[%clk 0:02:51]} 11. Rc1 {[%clk 0:02:59]}  a6 {[%clk 0:02:51]} 12. h3 {[%clk 0:02:57]}  Qa5 {[%clk 0:02:38]} 13. a3 {[%clk 0:02:54]}  Nxd4 {[%clk 0:02:35]} 14. Qxd4 {[%clk 0:02:53]}  Ne8 {[%clk 0:02:12]} 15. Qh4 {[%clk 0:02:49]}  b5 {[%clk 0:02:09]} 16. Qxe7 {[%clk 0:02:37]}  Be6 {[%clk 0:02:08]} 17. b4 {[%clk 0:02:15]}  Qb6 {[%clk 0:02:04]} 18. Nd5 {[%clk 0:02:02]}  Bxd5 {[%clk 0:01:25]} 19. Bxg7 {[%clk 0:02:01]}  Kxg7 {[%clk 0:01:18]} 20. cxd5 {[%clk 0:02:01]}  Nf6 {[%clk 0:01:18]} 21. Rc6 {[%clk 0:01:54]}  Rxc6 {[%clk 0:01:14]} 22. dxc6 {[%clk 0:01:55]}  Qxc6 {[%clk 0:01:15]} 23. Bf3 {[%clk 0:01:54]}  Qc3 {[%clk 0:01:12]} 24. Qxd6 {[%clk 0:01:52]}  Qxa3 {[%clk 0:01:12]} 25. g4 {[%clk 0:01:50]}  h6 {[%clk 0:01:09]} 26. h4 {[%clk 0:01:49]}  Kg8 {[%clk 0:00:43]} 27. Qxf6 {[%clk 0:01:49]}  Qxb4 {[%clk 0:00:42]} 28. h5 {[%clk 0:01:46]}  gxh5 {[%clk 0:00:36]} 29. Qxh6 {[%clk 0:01:45]}  hxg4 {[%clk 0:00:35]} 30. Qg5+ {[%clk 0:01:45]}  Kh8 {[%clk 0:00:34]} 31. Bxg4 {[%clk 0:01:40]}  f5 {[%clk 0:00:26]} 32. Kg2 {[%clk 0:01:34]}  Qxg4+ {[%clk 0:00:22]} 33. Qxg4 {[%clk 0:01:32]}  fxg4 {[%clk 0:00:23]} 34. Ra1 {[%clk 0:01:31]}  Rf6 {[%clk 0:00:23]} 35. Kg3 {[%clk 0:01:30]}  Rg6 {[%clk 0:00:23]} 36. Kf4 {[%clk 0:01:30]}  Kg7 {[%clk 0:00:23]} 37. Kf5 {[%clk 0:01:30]}  Rf6+ {[%clk 0:00:23]} 38. Kxg4 {[%clk 0:01:30]}  Rxf2 {[%clk 0:00:24]} 39. Rxa6 {[%clk 0:01:30]}  Rb2 {[%clk 0:00:24]} 40. Rb6 {[%clk 0:01:30]}  Rb3 {[%clk 0:00:24]} 41. Kg5 {[%clk 0:01:28]}  Rxe3 {[%clk 0:00:23]} 42. Rb7+ {[%clk 0:01:28]}  Kf8 {[%clk 0:00:23]} 43. Rxb5 {[%clk 0:01:29]}  Re7 {[%clk 0:00:22]} 44. Kf6 {[%clk 0:01:27]}  Rf7+ {[%clk 0:00:20]} 1/2-1/2


[Site "https://www.chess.com"]